fUSD/lending_fUSD_20260529
["ID","MTS","AMOUNT","RATE_DAILY","PERIOD"]
[423376827,1780068354000,-1012.73,0.00031066,30]
[423376826,1780068354000,-1012.73,0.00031062,30]
[423376823,1780068354000,-1012.73,0.00031049,30]
[423376825,1780068354000,-1012.73,0.00031057,30]
[423376824,1780068354000,-1012.73,0.00031053,30]
[423376830,1780068354000,-1012.73,0.00031079,30]
[423376829,1780068354000,-1012.73,0.00031074,30]
[423376837,1780068354000,-363.15,0.00033424,120]
[423376831,1780068354000,-1012.73,0.00031083,30]
[423376833,1780068354000,-1012.73,0.00031091,30]
[423376834,1780068354000,-1012.73,0.00031096,30]
[423376835,1780068354000,-1012.73,0.000311,30]
[423376836,1780068354000,-363.15,0.00032273,120]
[423376838,1780068354000,-363.15,0.00034574,120]
[423376839,1780068354000,-152.0,0.00035134,30]
[423376840,1780068354000,-152.0,0.00035134,30]
[423376832,1780068354000,-1012.73,0.00031087,30]
[423376841,1780068355000,-152.0,0.00035155,30]
[423376843,1780068355000,-152.0,0.00035177,30]
[423376842,1780068355000,-152.0,0.00035155,30]
[423376844,1780068355000,-363.15,0.00035725,120]
[423376845,1780068355000,-363.15,0.00036876,120]
[423376846,1780068355000,-2662.72,0.00037,30]
[423376847,1780068355000,-898.13822601,0.000375,30]
[423376849,1780068355000,-898.138226,0.000375,30]
[423376850,1780068355000,-2945.0,0.00037853,120]
[423376852,1780068355000,-784.0,0.00038823,60]
[423376851,1780068355000,-363.15,0.00038027,120]
[423376853,1780068355000,-784.0,0.00038823,60]
[423376855,1780068355000,-784.0,0.00038823,60]
[423376854,1780068355000,-784.0,0.00038823,60]
[423376848,1780068355000,-898.138226,0.000375,30]
[423376860,1780068356000,-784.0,0.00038823,60]
[423376856,1780068356000,-784.0,0.00038823,60]
[423376857,1780068356000,-784.0,0.00038823,60]
[423376858,1780068356000,-784.0,0.00038823,60]
[423376859,1780068356000,-500.0,0.00038823,60]
[423376861,1780068356000,-500.0,0.00038823,60]
[423376865,1780068356000,-179.0216437,0.00038823,60]
[423376863,1780068356000,-500.0,0.00038823,60]
[423376864,1780068356000,-784.0,0.00038823,60]
[423376866,1780068356000,-784.0,0.00038823,60]
[423376867,1780068356000,-784.0,0.00038823,60]
[423376868,1780068356000,-784.0,0.00038823,60]
[423376862,1780068356000,-784.0,0.00038823,60]
[423376869,1780068357000,-784.0,0.00038823,60]
[423376870,1780068357000,-784.0,0.00038823,60]
[423376871,1780068357000,-784.0,0.00038823,60]
[423376872,1780068357000,-784.0,0.00038823,60]
[423376873,1780068357000,-784.0,0.00038823,60]
[423376875,1780068357000,-784.0,0.00038823,60]
[423376876,1780068357000,-784.0,0.00038823,60]
[423376877,1780068357000,-784.0,0.00038823,60]
[423376879,1780068357000,-794.09860527,0.00038823,60]
[423376878,1780068357000,-784.0,0.00038823,60]
[423376880,1780068357000,-363.15,0.00039177,120]
[423376874,1780068357000,-784.0,0.00038823,60]
[423376883,1780068358000,-788.282679,0.00039335,30]
[423376881,1780068358000,-792.91265,0.00039335,30]
[423376882,1780068358000,-792.91265,0.00039335,30]
[423376884,1780068358000,-792.91265,0.00039335,30]
[423376888,1780068358000,-151.0,0.00039335,30]
[423376886,1780068358000,-788.282679,0.00039335,30]
[423376889,1780068358000,-151.0,0.00039335,30]
[423376885,1780068358000,-788.282679,0.00039335,30]
[423376887,1780068358000,-788.282679,0.00039335,30]
[423376890,1780068358000,-160.096132,0.00039335,30]
[423376891,1780068359000,-160.096132,0.00039335,30]
[423376892,1780068359000,-160.096132,0.00039335,30]
[423376893,1780068359000,-160.096132,0.00039335,30]
[423376895,1780068359000,-266.801837,0.00039335,30]
[423376896,1780068359000,-266.801837,0.00039335,30]
[423376894,1780068359000,-266.801837,0.00039335,30]
[423376898,1780068359000,-151.0,0.00039335,30]
[423376899,1780068359000,-151.0,0.00039335,30]
[423376900,1780068359000,-151.0,0.00039335,30]
[423376901,1780068359000,-470.77498212,0.00039343,120]
[423376902,1780068359000,-970.97546689,0.00039343,120]
[423376897,1780068359000,-266.801837,0.00039335,30]
[423376906,1780068363000,-788.282679,0.00039343,30]
[423376903,1780068363000,-792.91265,0.00039343,30]
[423376904,1780068363000,-792.91265,0.00039343,30]
[423376905,1780068363000,-792.91265,0.00039343,30]
[423376907,1780068363000,-792.91265,0.00039343,30]
[423376909,1780068363000,-792.91265,0.00039343,30]
[423376910,1780068363000,-792.912658,0.00039343,30]
[423376912,1780068363000,-788.282679,0.00039343,30]
[423376911,1780068363000,-788.282679,0.00039343,30]
[423376913,1780068363000,-788.282679,0.00039343,30]
[423376914,1780068363000,-788.282679,0.00039343,30]
[423376908,1780068363000,-788.282679,0.00039343,30]
[423376922,1780068364000,-160.096132,0.00039343,30]
[423376915,1780068364000,-788.282679,0.00039343,30]
[423376917,1780068364000,-151.0,0.00039343,30]
[423376916,1780068364000,-788.282679,0.00039343,30]
[423376919,1780068364000,-151.0,0.00039343,30]
[423376918,1780068364000,-151.0,0.00039343,30]
[423376921,1780068364000,-160.096132,0.00039343,30]
[423376920,1780068364000,-151.0,0.00039343,30]
[423376923,1780068364000,-160.096132,0.00039343,30]
[423376924,1780068364000,-160.096132,0.00039343,30]
[423376932,1780068364000,-266.801837,0.00039343,30]
[423376925,1780068364000,-160.096132,0.00039343,30]
[423376936,1780068364000,-266.801837,0.00039343,30]
[423376926,1780068364000,-160.096132,0.00039343,30]
[423376935,1780068364000,-266.801837,0.00039343,30]
[423376933,1780068364000,-266.801837,0.00039343,30]
[423376934,1780068364000,-266.801837,0.00039343,30]
[423376931,1780068364000,-266.801837,0.00039343,30]
[423376930,1780068364000,-266.801837,0.00039343,30]
[423376927,1780068364000,-160.096132,0.00039343,30]
[423376928,1780068364000,-266.801837,0.00039343,30]
[423376929,1780068364000,-160.096134,0.00039343,30]
[423376946,1780068365000,-1000.0,0.00041288,120]
[423376937,1780068365000,-151.0,0.00039343,30]
[423376938,1780068365000,-151.0,0.00039343,30]
[423376940,1780068365000,-2945.0,0.00039746,120]
[423376939,1780068365000,-5000.0,0.000395,100]
[423376942,1780068365000,-500.0,0.00041068,30]
[423376944,1780068365000,-1384.62088006,0.0004115,120]
[423376943,1780068365000,-1250.0,0.00041096,60]
[423376945,1780068365000,-500.0,0.0004115,120]
[423376941,1780068365000,-363.15,0.00040328,120]
[423376947,1780068365000,-363.15,0.00041479,120]
[423376956,1780068365000,-1148.61238259,0.00041498,30]
[423376954,1780068365000,-1107.63007,0.00041498,30]
[423376955,1780068365000,-191.87295522,0.00041498,30]
[423376953,1780068365000,-185.02695778,0.00041498,30]
[423376948,1780068365000,-165.92,0.00041498,30]
[423376957,1780068365000,-198.97225456,0.00041498,30]
[423376951,1780068365000,-178.42522448,0.00041498,30]
[423376950,1780068365000,-1030.0,0.00041498,30]
[423376949,1780068365000,-172.05904,0.00041498,30]
[423376952,1780068365000,-1068.11,0.00041498,30]
[423376967,1780068366000,-238.60871557,0.00041498,30]
[423376958,1780068366000,-1191.11104074,0.00041498,30]
[423376959,1780068366000,-206.33422798,0.00041498,30]
[423376960,1780068366000,-1235.18214925,0.00041498,30]
[423376961,1780068366000,-213.96859442,0.00041498,30]
[423376962,1780068366000,-1280.88388877,0.00041498,30]
[423376963,1780068366000,-221.88543241,0.00041498,30]
[423376964,1780068366000,-1328.27659266,0.00041498,30]
[423376965,1780068366000,-230.09519341,0.00041498,30]
[423376966,1780068366000,-1377.42282658,0.00041498,30]
[423376969,1780068366000,-247.43723804,0.00041498,30]
[423376968,1780068366000,-1428.38747117,0.00041498,30]
[423376970,1780068366000,-1481.2378076,0.00041498,30]
[423376979,1780068366000,-296.7282131,0.00041498,30]
[423376977,1780068366000,-286.14099624,0.00041498,30]
[423376978,1780068366000,-1712.93078311,0.00041498,30]
[423376976,1780068366000,-1651.81367706,0.00041498,30]
[423376980,1780068366000,-1776.30922209,0.00041498,30]
[423376974,1780068366000,-1592.87721992,0.00041498,30]
[423376973,1780068366000,-266.08633524,0.00041498,30]
[423376972,1780068366000,-1536.04360648,0.00041498,30]
[423376971,1780068366000,-256.59241585,0.00041498,30]
[423376975,1780068366000,-275.93152964,0.00041498,30]
[423376990,1780068367000,-187.78006524,0.00041499,120]
[423376981,1780068367000,-307.70715698,0.00041498,30]
[423376983,1780068367000,-319.09232179,0.00041498,30]
[423376982,1780068367000,-1842.0326633,0.00041498,30]
[423376984,1780068367000,-1910.18787185,0.00041498,30]
[423376985,1780068367000,-1980.8648231,0.00041498,30]
[423376986,1780068367000,-2054.15682147,0.00041498,30]
[423376988,1780068367000,-187.78006524,0.00041499,120]
[423376987,1780068367000,-151.0,0.00041499,120]
[423376989,1780068367000,-187.78006524,0.00041499,120]
[423377002,1780068367000,-160.0,0.00041499,120]
[423376991,1780068367000,-323.68682015,0.00041499,120]
[423376994,1780068367000,-200.0,0.00041499,120]
[423376993,1780068367000,-6000.0,0.00041499,120]
[423376995,1780068367000,-151.0,0.00041499,120]
[423376997,1780068367000,-194.72792766,0.00041499,120]
[423376996,1780068367000,-194.72792766,0.00041499,120]
[423376998,1780068367000,-335.66323249,0.00041499,120]
[423376999,1780068367000,-500.0,0.00041499,120]
[423377001,1780068367000,-194.72792766,0.00041499,120]
[423377000,1780068367000,-209.40437684,0.00041499,120]
[423376992,1780068367000,-201.93286098,0.00041499,120]
[423377011,1780068368000,-151.0,0.00041499,120]
[423377009,1780068368000,-500.0,0.00041499,120]
[423377010,1780068368000,-217.15233878,0.00041499,120]
[423377007,1780068368000,-201.93286098,0.00041499,120]
[423377004,1780068368000,-200.0,0.00041499,120]
[423377006,1780068368000,-201.93286098,0.00041499,120]
[423377005,1780068368000,-151.0,0.00041499,120]
[423377003,1780068368000,-6222.0,0.00041499,120]
[423377012,1780068368000,-160.0,0.00041499,120]
[423377008,1780068368000,-436.88401428,0.00041499,120]
[423377013,1780068368000,-6452.214,0.00041499,120]
[423377023,1780068368000,-160.0,0.00041499,120]
[423377014,1780068368000,-200.0,0.00041499,120]
[423377015,1780068368000,-151.0,0.00041499,120]
[423377024,1780068368000,-6888.0,0.00041499,120]
[423377022,1780068368000,-201.93286098,0.00041499,120]
[423377021,1780068368000,-151.0,0.00041499,120]
[423377025,1780068368000,-152.0,0.00041499,120]
[423377020,1780068368000,-225.18697532,0.00041499,120]
[423377018,1780068368000,-500.0,0.00041499,120]
[423377016,1780068368000,-209.40437684,0.00041499,120]
[423377019,1780068368000,-209.40437684,0.00041499,120]
[423377017,1780068368000,-500.0,0.00041499,120]
[423377026,1780068369000,-6690.945918,0.00041499,120]
[423377028,1780068369000,-151.0,0.00041499,120]
[423377029,1780068369000,-217.15233878,0.00041499,120]
[423377027,1780068369000,-200.0,0.00041499,120]
[423377031,1780068369000,-500.0,0.00041499,120]
[423377030,1780068369000,-518.5,0.00041499,120]
[423377033,1780068369000,-233.5188934,0.00041499,120]
[423377032,1780068369000,-217.15233878,0.00041499,120]
[423377035,1780068369000,-160.0,0.00041499,120]
[423377036,1780068369000,-7142.856,0.00041499,120]
[423377034,1780068369000,-151.0,0.00041499,120]
[423377040,1780068369000,-200.0,0.00041499,120]
[423377047,1780068369000,-151.0,0.00041499,120]
[423377037,1780068369000,-209.40437684,0.00041499,120]
[423377045,1780068369000,-225.18697532,0.00041499,120]
[423377043,1780068369000,-537.6845,0.00041499,120]
[423377044,1780068369000,-500.0,0.00041499,120]
[423377046,1780068369000,-242.15909246,0.00041499,120]
[423377042,1780068369000,-302.96099822,0.00041499,120]
[423377038,1780068369000,-152.0,0.00041499,120]
[423377039,1780068369000,-5315.41361255,0.00041499,120]
[423377041,1780068369000,-151.0,0.00041499,120]
[423377048,1780068370000,-7407.141672,0.00041499,120]
[423377057,1780068370000,-151.0,0.00041499,120]
[423377051,1780068370000,-200.0,0.00041499,120]
[423377050,1780068370000,-160.0,0.00041499,120]
[423377052,1780068370000,-151.0,0.00041499,120]
[423377053,1780068370000,-799.54513344,0.00041499,120]
[423377055,1780068370000,-557.5788265,0.00041499,120]
[423377054,1780068370000,-500.0,0.00041499,120]
[423377056,1780068370000,-233.5188934,0.00041499,120]
[423377049,1780068370000,-217.15233878,0.00041499,120]
[423377060,1780068370000,-7681.20591386,0.00041499,120]
[423377058,1780068370000,-225.18697532,0.00041499,120]
[423377061,1780068370000,-200.0,0.00041499,120]
[423377062,1780068370000,-151.0,0.00041499,120]
[423377063,1780068370000,-500.0,0.00041499,120]
[423377064,1780068370000,-578.20924308,0.00041499,120]
[423377066,1780068370000,-242.15909246,0.00041499,120]
[423377065,1780068370000,-152.0,0.00041499,120]
[423377068,1780068370000,-173.65268502,0.00041499,120]
[423377067,1780068370000,-151.0,0.00041499,120]
[423377059,1780068370000,-160.0,0.00041499,120]
[423377076,1780068371000,-500.0,0.00041499,120]
[423377077,1780068371000,-7965.41053267,0.00041499,120]
[423377074,1780068371000,-599.60298507,0.00041499,120]
[423377075,1780068371000,-152.0,0.00041499,120]
[423377070,1780068371000,-200.0,0.00041499,120]
[423377073,1780068371000,-829.12830338,0.00041499,120]
[423377071,1780068371000,-151.0,0.00041499,120]
[423377079,1780068371000,-151.0,0.00041499,120]
[423377072,1780068371000,-251.11897888,0.00041499,120]
[423377078,1780068371000,-251.11897888,0.00041499,120]
[423377069,1780068371000,-233.5188934,0.00041499,120]
[423377081,1780068371000,-200.0,0.00041499,120]
[423377080,1780068371000,-242.15909246,0.00041499,120]
[423377089,1780068371000,-200.0,0.00041499,120]
[423377088,1780068371000,-4489.64012098,0.00041499,120]
[423377086,1780068371000,-152.0,0.00041499,120]
[423377090,1780068371000,-151.0,0.00041499,120]
[423377084,1780068371000,-621.78829552,0.00041499,120]
[423377085,1780068371000,-859.8060506,0.00041499,120]
[423377083,1780068371000,-260.4103811,0.00041499,120]
[423377087,1780068371000,-500.0,0.00041499,120]
[423377082,1780068371000,-151.0,0.00041499,120]
[423377091,1780068372000,-270.0455652,0.00041499,120]
[423377092,1780068372000,-151.0,0.00041499,120]
[423377093,1780068372000,-260.4103811,0.00041499,120]
[423377094,1780068372000,-251.11897888,0.00041499,120]
[423377096,1780068372000,-891.61887448,0.00041499,120]
[423377095,1780068372000,-644.79446245,0.00041499,120]
[423377098,1780068372000,-500.0,0.00041499,120]
[423377097,1780068372000,-152.0,0.00041499,120]
[423377099,1780068372000,-200.0,0.00041499,120]
[423377100,1780068372000,-151.0,0.00041499,120]
[423377102,1780068372000,-151.0,0.00041499,120]
[423377101,1780068372000,-153.27316643,0.00041499,120]
[423377111,1780068372000,-151.0,0.00041499,120]
[423377109,1780068372000,-151.0,0.00041499,120]
[423377108,1780068372000,-200.0,0.00041499,120]
[423377110,1780068372000,-924.60877283,0.00041499,120]
[423377107,1780068372000,-500.0,0.00041499,120]
[423377104,1780068372000,-668.65185756,0.00041499,120]
[423377105,1780068372000,-260.4103811,0.00041499,120]
[423377106,1780068372000,-152.0,0.00041499,120]
[423377103,1780068372000,-176.79889131,0.00041499,120]
[423377119,1780068373000,-719.04747942,0.00041499,120]
[423377112,1780068373000,-170.73266429,0.00041499,120]
[423377113,1780068373000,-152.0,0.00041499,120]
[423377115,1780068373000,-500.0,0.00041499,120]
[423377114,1780068373000,-693.39197629,0.00041499,120]
[423377116,1780068373000,-200.0,0.00041499,120]
[423377117,1780068373000,-151.0,0.00041499,120]
[423377120,1780068373000,-152.0,0.00041499,120]
[423377121,1780068373000,-500.0,0.00041499,120]
[423377126,1780068373000,-745.65223615,0.00041499,120]
[423377127,1780068373000,-152.0,0.00041499,120]
[423377125,1780068373000,-151.0,0.00041499,120]
[423377118,1780068373000,-151.0,0.00041499,120]
[423377123,1780068373000,-958.81929743,0.00041499,120]
[423377122,1780068373000,-200.0,0.00041499,120]
[423377124,1780068373000,-151.0,0.00041499,120]
[423377129,1780068374000,-200.0,0.00041499,120]
[423377128,1780068374000,-500.0,0.00041499,120]
[423377131,1780068374000,-719.89917803,0.00041499,120]
[423377130,1780068374000,-151.0,0.00041499,120]
[423377133,1780068374000,-773.24136889,0.00041499,120]
[423377135,1780068374000,-500.0,0.00041499,120]
[423377134,1780068374000,-152.0,0.00041499,120]
[423377136,1780068374000,-288.71285617,0.00041499,120]
[423377132,1780068374000,-151.0,0.00041499,120]
[423377139,1780068374000,-152.0,0.00041499,120]
[423377137,1780068374000,-151.0,0.00041499,120]
[423377146,1780068374000,-151.0,0.00041499,120]
[423377144,1780068374000,-151.0,0.00041499,120]
[423377143,1780068374000,-152.0,0.00041499,120]
[423377145,1780068374000,-500.0,0.00041499,120]
[423377141,1780068374000,-500.0,0.00041499,120]
[423377140,1780068374000,-801.85129954,0.00041499,120]
[423377138,1780068374000,-151.0,0.00041499,120]
[423377142,1780068374000,-151.0,0.00041499,120]
[423377154,1780068375000,-500.0,0.00041499,120]
[423377147,1780068375000,-152.0,0.00041499,120]
[423377148,1780068375000,-151.0,0.00041499,120]
[423377149,1780068375000,-500.0,0.00041499,120]
[423377150,1780068375000,-831.51979762,0.00041499,120]
[423377151,1780068375000,-151.0,0.00041499,120]
[423377152,1780068375000,-152.0,0.00041499,120]
[423377153,1780068375000,-267.96428932,0.00041499,120]
[423377155,1780068375000,-862.28603014,0.00041499,120]
[423377161,1780068375000,-152.0,0.00041499,120]
[423377157,1780068375000,-500.0,0.00041499,120]
[423377159,1780068375000,-152.0,0.00041499,120]
[423377158,1780068375000,-600.4098777,0.00041499,120]
[423377160,1780068375000,-152.0,0.00041499,120]
[423377162,1780068375000,-152.0,0.00041499,120]
[423377164,1780068375000,-3384.519,0.000415,120]
[423377163,1780068375000,-732789.51383028,0.000415,120]
[423377156,1780068375000,-152.0,0.00041499,120]
[423377165,1780068375000,-3384.519,0.000415,120]
[423377172,1780068376000,-1200.0,0.00041507,120]
[423377170,1780068376000,-500.0,0.000415,120]
[423377166,1780068376000,-3384.51,0.000415,120]
[423377167,1780068376000,-3933.99055842,0.000415,120]
[423377168,1780068376000,-679.48743,0.000415,120]
[423377173,1780068376000,-1000.0,0.00041516,120]
[423377169,1780068376000,-442.28804509,0.000415,60]
[423377175,1780068376000,-150.0,0.00041521,120]
[423377171,1780068376000,-1556.36,0.00041504,120]
[423377176,1780068376000,-2000.0,0.00041528,120]
[423377177,1780068376000,-1000.0,0.00041534,120]
[423377185,1780068376000,-1000.0,0.00041571,120]
[423377183,1780068376000,-480.0,0.00041552,120]
[423377182,1780068376000,-1682.0,0.00041552,120]
[423377184,1780068376000,-1000.0,0.00041553,120]
[423377174,1780068376000,-300.0,0.00041517,91]
[423377180,1780068376000,-310.35,0.00041544,120]
[423377178,1780068376000,-504.87,0.00041536,120]
[423377179,1780068376000,-322.82,0.00041538,120]
[423377181,1780068376000,-300.0,0.00041549,92]
[423377187,1780068377000,-322.82,0.00041588,120]
[423377188,1780068377000,-1000.0,0.00041589,120]
[423377189,1780068377000,-310.35,0.00041594,120]
[423377190,1780068377000,-200.0,0.000416,30]
[423377191,1780068377000,-1000.0,0.00041607,120]
[423377192,1780068377000,-300.0,0.0004161,92]
[423377193,1780068377000,-182.0,0.00041611,120]
[423377195,1780068377000,-1000.0,0.00041626,120]
[423377194,1780068377000,-500.0,0.00041616,30]
[423377186,1780068377000,-300.0,0.0004158,92]
[423377197,1780068377000,-300.0,0.0004164,92]
[423377198,1780068377000,-250.0,0.00041643,120]
[423377199,1780068377000,-500.0,0.00041643,50]
[423377200,1780068377000,-310.35,0.00041644,120]
[423377201,1780068377000,-1550.0,0.00041644,120]
[423377203,1780068377000,-1780.0,0.00041644,120]
[423377202,1780068377000,-3114.67,0.00041644,120]
[423377204,1780068377000,-839.53,0.00041644,120]
[423377196,1780068377000,-322.82,0.00041638,120]
[423377205,1780068377000,-652.36,0.00041644,120]
[423377213,1780068378000,-169.34,0.00041644,120]
[423377214,1780068378000,-169.34,0.00041644,120]
[423377211,1780068378000,-745.0,0.00041644,30]
[423377212,1780068378000,-169.34,0.00041644,120]
[423377206,1780068378000,-577.75,0.00041644,120]
[423377210,1780068378000,-911.2,0.00041644,30]
[423377208,1780068378000,-640.0,0.00041644,30]
[423377207,1780068378000,-892.96,0.00041644,30]
[423377209,1780068378000,-1000.0,0.00041644,120]
[423377216,1780068378000,-169.34,0.00041644,120]
[423377217,1780068378000,-169.31036013,0.00041644,120]
[423377218,1780068378000,-174.12,0.00041644,120]
[423377215,1780068378000,-169.34,0.00041644,120]
[423377226,1780068378000,-278.58,0.00041644,120]
[423377224,1780068378000,-278.58,0.00041644,120]
[423377223,1780068378000,-278.58,0.00041644,120]
[423377225,1780068378000,-278.58,0.00041644,120]
[423377221,1780068378000,-174.10005343,0.00041644,120]
[423377219,1780068378000,-174.12,0.00041644,120]
[423377220,1780068378000,-174.12,0.00041644,120]
[423377222,1780068378000,-278.58,0.00041644,120]
[423377227,1780068379000,-278.58,0.00041644,120]
[423377228,1780068379000,-278.58,0.00041644,120]
[423377229,1780068379000,-278.58,0.00041644,120]
[423377230,1780068379000,-278.58,0.00041644,120]
[423377231,1780068379000,-278.62,0.00041644,120]
[423377233,1780068379000,-1000.0,0.00041662,120]
[423377232,1780068379000,-500.0,0.00041645,120]
[423377234,1780068379000,-150.0,0.00041663,120]
[423377236,1780068379000,-300.0,0.00041669,92]
[423377243,1780068379000,-1456.1,0.00041694,120]
[423377241,1780068379000,-322.82,0.00041688,120]
[423377240,1780068379000,-1000.0,0.0004168,120]
[423377235,1780068379000,-150.0,0.00041664,120]
[423377239,1780068379000,-2000.0,0.00041673,120]
[423377238,1780068379000,-225.0,0.00041671,30]
[423377237,1780068379000,-3071.41710846,0.0004167,60]
[423377242,1780068379000,-310.35,0.00041694,120]
[423377250,1780068380000,-3260.75427935,0.000417,120]
[423377244,1780068380000,-300.0,0.00041698,92]
[423377245,1780068380000,-1000.0,0.00041699,120]
[423377246,1780068380000,-973.87799697,0.000417,120]
[423377248,1780068380000,-5474.28,0.000417,120]
[423377247,1780068380000,-1349.11864393,0.000417,120]
[423377249,1780068380000,-6015.71747753,0.000417,120]
[423377251,1780068380000,-1013.32453833,0.000417,120]
[423377252,1780068380000,-2090.75,0.000417,120]
[423377262,1780068380000,-323.0878083,0.000417,120]
[423377255,1780068380000,-37571.09057206,0.000417,120]
[423377254,1780068380000,-15041.10762065,0.000417,120]
[423377256,1780068380000,-4565.7824188,0.000417,120]
[423377257,1780068380000,-996.74808348,0.000417,120]
[423377259,1780068380000,-169.42196976,0.000417,120]
[423377258,1780068380000,-1488.08759403,0.000417,120]
[423377261,1780068380000,-210.51983304,0.000417,120]
[423377260,1780068380000,-575.29823467,0.000417,120]
[423377253,1780068380000,-2220.34,0.000417,120]
[423377269,1780068381000,-31087.15958265,0.000417,120]
[423377268,1780068381000,-14165.92924044,0.000417,120]
[423377267,1780068381000,-709.40836054,0.000417,120]
[423377270,1780068381000,-4056.05984978,0.000417,120]
[423377264,1780068381000,-470.16038608,0.000417,120]
[423377265,1780068381000,-23854.85683267,0.000417,120]
[423377263,1780068381000,-343.15190122,0.000417,120]
[423377266,1780068381000,-30742.01204221,0.000417,120]
[423377271,1780068381000,-10019.94529174,0.000417,120]
[423377282,1780068381000,-50000.0,0.000417,120]
[423377272,1780068381000,-3656.85233417,0.000417,120]
[423377273,1780068381000,-50000.0,0.000417,120]
[423377281,1780068381000,-50000.0,0.000417,120]
[423377279,1780068381000,-6173.60210951,0.000417,120]
[423377278,1780068381000,-50000.0,0.000417,120]
[423377280,1780068381000,-50000.0,0.000417,120]
[423377277,1780068381000,-50000.0,0.000417,120]
[423377275,1780068381000,-50000.0,0.000417,120]
[423377274,1780068381000,-50000.0,0.000417,120]
[423377276,1780068381000,-50000.0,0.000417,120]
[423377283,1780068382000,-50000.0,0.000417,120]
[423377284,1780068382000,-50000.0,0.000417,120]
[423377285,1780068382000,-50000.0,0.000417,120]
[423377286,1780068382000,-50000.0,0.000417,120]
[423377287,1780068382000,-50000.0,0.000417,120]
[423377288,1780068382000,-50000.0,0.000417,120]
[423377291,1780068382000,-1000.0,0.00041717,120]
[423377289,1780068382000,-27013.0,0.000417,120]
[423377293,1780068382000,-266.4771556,0.00041725,120]
[423377292,1780068382000,-150.0,0.00041719,120]
[423377295,1780068382000,-1331.01513864,0.00041725,120]
[423377294,1780068382000,-502.27314874,0.00041725,120]
[423377297,1780068382000,-183.86751181,0.00041725,120]
[423377296,1780068382000,-498.70018951,0.00041725,120]
[423377298,1780068382000,-164.58389015,0.00041725,120]
[423377290,1780068382000,-679.48744,0.000417,120]
[423377305,1780068383000,-310.35,0.00041744,120]
[423377304,1780068383000,-150.0,0.00041738,120]
[423377303,1780068383000,-323.3272985,0.00041738,120]
[423377299,1780068383000,-257.48176966,0.00041725,120]
[423377301,1780068383000,-2945.0,0.00041733,120]
[423377300,1780068383000,-300.0,0.00041727,93]
[423377306,1780068383000,-500.0,0.0004175,120]
[423377302,1780068383000,-1000.0,0.00041735,120]
[423377308,1780068383000,-300.0,0.00041755,93]
[423377307,1780068383000,-1000.0,0.00041753,120]
[423377311,1780068383000,-1000.0,0.00041772,120]
[423377312,1780068383000,-1800.0,0.00041774,120]
[423377310,1780068383000,-150.0,0.00041762,120]
[423377313,1780068383000,-300.0,0.00041782,93]
[423377314,1780068383000,-1000.0,0.0004179,120]
[423377316,1780068383000,-310.35,0.00041794,120]
[423377315,1780068383000,-150.0,0.00041791,120]
[423377317,1780068383000,-10000.0,0.000418,120]
[423377309,1780068383000,-2509.19,0.00041759,120]
[423377318,1780068383000,-2292.0,0.000418,120]
[423377327,1780068384000,-379.46250294,0.000418,90]
[423377325,1780068384000,-1544.62531163,0.000418,120]
[423377326,1780068384000,-230.07853408,0.000418,120]
[423377323,1780068384000,-2091.01,0.000418,120]
[423377319,1780068384000,-319.0,0.000418,30]